bitfinex/quotes_SOLUSD_20220119
["timestamp","ask_amount","ask_price","bid_price","bid_amount"]
[1642631370277,73.53,136.95,136.88,8.15138822]
[1642631370477,73.53,136.95,136.89,6.0]
[1642631370677,0.25,136.94,136.89,6.0]
[1642631371676,76.45,136.95,136.89,6.0]
[1642631371877,73.53,136.95,136.89,6.0]
[1642631372278,73.79,136.95,136.9,4.12541217]
[1642631372979,73.79,136.95,136.89,4.0305846]
[1642631373180,73.79,136.95,136.9,4.0305846]
[1642631373584,73.79,136.95,136.9,8.15599677]
[1642631373784,73.79,136.95,136.9,4.0305846]
[1642631374282,73.79,136.95,136.88,4.12541217]
[1642631374283,73.79,136.95,136.91,4.0305846]
[1642631375882,73.79,136.95,136.92,4.0305846]
[1642631376083,3.03219997,136.94,136.92,8.15599677]
[1642631376283,3.03219997,136.94,136.92,4.0305846]
[1642631376486,3.03219997,136.94,136.91,4.0305846]
[1642631377084,73.53,136.95,136.91,4.0305846]
[1642631377284,73.53,136.95,136.92,4.0305846]
[1642631377485,3.03210003,136.94,136.92,4.0305846]
[1642631377685,73.53,136.95,136.92,4.0305846]
[1642631378087,73.53,136.95,136.91,4.0305846]
[1642631378685,73.53,136.95,136.92,4.0305846]
[1642631379584,84.5038,136.95,136.92,4.0305846]
[1642631379785,6.0643,136.94,136.92,4.0305846]
[1642631379986,6.0643,136.94,136.91,4.0305846]
[1642631381187,6.0643,136.94,136.91,3.21686942]
[1642631383688,6.3243,136.94,136.91,3.21686942]
[1642631384489,6.3243,136.94,136.92,6.0]
[1642631386293,6.3243,136.94,136.91,3.21686942]
[1642631390325,6.3243,136.94,136.88,4.13771775]
[1642631390524,6.3243,136.94,136.89,6.25]
[1642631391024,6.3243,136.94,136.9,4.13771775]
[1642631398544,6.3243,136.94,136.91,6.0]
[1642631399549,6.3243,136.94,136.89,0.25]
[1642631399750,6.3243,136.94,136.9,4.13630501]
[1642631399952,6.3243,136.94,136.89,4.13630501]
[1642631400151,6.3243,136.94,136.9,6.0]
[1642631400352,6.3243,136.94,136.91,4.13630501]
[1642631400752,6.3243,136.94,136.88,0.25]
[1642631400979,6.3243,136.94,136.89,4.13637881]
[1642631401184,17.2822,136.94,136.89,4.13637881]
[1642631401581,17.2822,136.94,136.88,4.13637881]
[1642631402082,73.53,136.93,136.88,4.13637881]
[1642631402487,10.959,136.93,136.87,4.13637881]
[1642631402682,10.959,136.93,136.87,4.38637881]
[1642631402882,10.959,136.93,136.88,4.13637881]
[1642631403084,73.78,136.92,136.87,4.13637881]
[1642631403484,73.78,136.92,136.86,4.13637881]
[1642631403685,76.702,136.92,136.84,6.0]
[1642631403884,10.9616,136.91,136.82,6.0]
[1642631404185,10.9616,136.91,136.79,11.19412864]
[1642631404186,73.78,136.9,136.79,2.922]
[1642631404384,97.1778,136.9,136.8,4.12866964]
[1642631404986,97.4378,136.9,136.8,4.12866964]
[1642631405284,97.4378,136.9,136.81,6.0]
[1642631405887,97.4378,136.9,136.8,6.0]
[1642631406085,10.9631,136.88,136.8,6.25]
[1642631406288,73.53,136.87,136.8,6.25]
[1642631407390,10.9645,136.86,136.8,6.25]
[1642631408090,84.4945,136.86,136.8,6.25]
[1642631409891,84.7545,136.86,136.8,6.25]
[1642631410093,84.7545,136.86,136.81,6.0]
[1642631410893,84.7545,136.86,136.8,0.25]
[1642631411097,84.7545,136.86,136.79,6.25]
[1642631412627,84.7545,136.86,136.8,6.0]
[1642631413229,84.7545,136.86,136.79,0.25]
[1642631413430,84.7545,136.86,136.77,2.923]
[1642631413630,84.7545,136.86,136.78,6.0]
[1642631413830,84.7545,136.86,136.78,6.25]
[1642631420034,84.4945,136.86,136.78,6.25]
[1642631421335,84.7545,136.86,136.78,6.25]
[1642631423033,84.7545,136.86,136.78,6.0]
[1642631423235,0.25,136.85,136.77,3.81328576]
[1642631423434,84.4973,136.83,136.77,3.81328576]
[1642631423633,84.4973,136.83,136.74,0.02890342]
[1642631424034,0.25,136.82,136.74,0.02890342]
[1642631424438,24.3537,136.82,136.74,0.02890342]
[1642631424939,24.3537,136.82,136.74,4.14186474]
[1642631425138,35.3211,136.82,136.75,6.0]
[1642631425336,35.3211,136.82,136.75,6.25]
[1642631425741,35.3211,136.82,136.75,0.25]
[1642631426039,108.8511,136.82,136.75,0.25]
[1642631426240,108.8511,136.82,136.74,0.02890342]
[1642631426942,108.6011,136.82,136.74,4.1476685]
[1642631427141,108.6011,136.82,136.75,10.0652595]
[1642631427343,0.25,136.81,136.76,4.11876508]
[1642631427542,0.25,136.81,136.77,6.0]
[1642631428443,0.25,136.81,136.76,6.0]
[1642631429345,11.2183,136.81,136.77,4.12834726]
[1642631429544,11.2183,136.81,136.78,6.0]
[1642631429945,6.0643,136.8,136.78,6.0]
[1642631430345,6.0643,136.8,136.76,6.0]
[1642631430546,6.0643,136.8,136.77,4.12844189]
[1642631430748,6.3243,136.8,136.77,4.12844189]
[1642631430945,6.3243,136.8,136.78,6.0]
[1642631431546,79.8543,136.8,136.76,6.0]
[1642631431750,90.8233,136.8,136.76,6.0]
[1642631432146,17.2933,136.8,136.76,6.0]
[1642631433149,17.2933,136.8,136.75,6.25]
[1642631433352,17.2933,136.8,136.76,4.13345068]
[1642631433553,17.2933,136.8,136.77,6.0]
[1642631433751,17.2933,136.8,136.74,6.27890342]
[1642631433953,17.2933,136.8,136.76,6.0]
[1642631434152,17.0333,136.8,136.76,6.0]
[1642631434352,17.0333,136.8,136.77,6.0]
[1642631434553,6.0643,136.8,136.74,6.02890342]
[1642631434753,6.0643,136.8,136.75,4.13323769]
[1642631435053,6.0643,136.8,136.76,6.0]
[1642631435858,6.0643,136.8,136.75,6.0]
[1642631436058,6.0643,136.8,136.76,4.13380853]
[1642631436457,6.0643,136.8,136.77,6.0]
[1642631436757,6.3243,136.8,136.77,6.0]
[1642631437156,6.3243,136.8,136.76,6.0]
[1642631442792,6.0643,136.8,136.76,6.0]
[1642631444594,6.0643,136.8,136.77,4.13415522]
[1642631444994,6.0643,136.8,136.78,6.0]
[1642631445194,6.0643,136.8,136.79,0.25]
[1642631445395,6.0643,136.8,136.78,6.0]
[1642631445595,6.0643,136.8,136.76,6.0]
[1642631445796,6.0643,136.8,136.77,4.1343997]
[1642631446000,6.0643,136.8,136.78,6.0]
[1642631446598,6.0643,136.8,136.79,0.25]
[1642631446799,10.9662,136.84,136.77,4.13448115]
[1642631446997,24.832,136.86,136.77,10.13448115]
[1642631447198,24.832,136.86,136.78,0.25]
[1642631447399,24.832,136.86,136.78,4.38448115]
[1642631447612,24.832,136.86,136.79,6.0]
[1642631447805,11.2152,136.85,136.79,6.0]
[1642631448005,10.9652,136.85,136.8,0.25]
[1642631449206,10.9652,136.85,136.79,6.0]
[1642631449608,10.9652,136.85,136.77,8.923]
[1642631449805,11.2252,136.85,136.78,4.3851033]
[1642631450004,11.2252,136.85,136.79,10.1351033]
[1642631450408,11.2252,136.85,136.8,0.25]
[1642631450604,11.2252,136.85,136.79,6.0]
[1642631450807,11.2252,136.85,136.78,6.0]
[1642631451008,11.2252,136.85,136.79,4.13578969]
[1642631452207,11.2252,136.85,136.8,0.25]
[1642631452409,11.2252,136.85,136.8,6.25]
[1642631453010,11.2252,136.85,136.78,6.0]
[1642631453215,11.2252,136.85,136.79,4.13759658]
[1642631453611,11.2252,136.85,136.8,6.25]
[1642631453813,11.2252,136.85,136.8,6.0]
[1642631454011,11.2252,136.85,136.77,6.0]
[1642631454211,11.2252,136.85,136.78,4.13779708]
[1642631454512,11.2252,136.85,136.79,6.0]
[1642631454712,11.2252,136.85,136.79,6.25]
[1642631455311,11.2252,136.85,136.77,6.0]
[1642631455512,11.2252,136.85,136.78,4.13773612]
[1642631455811,11.2252,136.85,136.79,0.25]
[1642631456010,11.2252,136.85,136.79,6.25]
[1642631456512,11.2252,136.85,136.79,0.25]
[1642631456712,11.2252,136.85,136.8,6.0]
[1642631456915,0.26,136.85,136.78,0.25]
[1642631457116,0.26,136.85,136.79,4.13755265]
[1642631457348,0.25,136.85,136.8,0.25]
[1642631457646,0.25,136.85,136.8,6.0]
[1642631458047,0.25,136.85,136.77,6.0]
[1642631458251,0.25,136.85,136.77,6.25]
[1642631458451,0.25,136.85,136.78,4.13740153]
[1642631458646,0.25,136.85,136.79,6.0]
[1642631459248,0.25,136.85,136.77,6.25]
[1642631459447,34.1712,136.85,136.78,4.1375001]
[1642631459748,34.1712,136.85,136.79,6.25]
[1642631460446,34.1712,136.85,136.79,0.25]
[1642631460655,33.9212,136.85,136.79,0.25]
[1642631460848,34.1812,136.85,136.79,0.25]
[1642631461048,34.1812,136.85,136.78,0.25]
[1642631461452,34.1812,136.85,136.79,4.13715008]
[1642631461650,34.1812,136.85,136.8,6.0]
[1642631461849,34.1812,136.85,136.8,0.25]
[1642631462049,34.1812,136.85,136.78,0.25]
[1642631463252,34.1812,136.85,136.78,3.173]
[1642631463451,34.1812,136.85,136.8,2.0687786]
[1642631463853,34.1812,136.85,136.81,0.25]
[1642631464055,34.1812,136.85,136.8,2.0687786]
[1642631464252,11.2251,136.85,136.8,2.0687786]
[1642631464855,11.2251,136.85,136.81,0.25]
[1642631465053,11.2251,136.85,136.81,2.3187786]
[1642631465454,11.2251,136.85,136.81,0.25]
[1642631466456,11.2251,136.85,136.8,2.0687786]
[1642631468259,0.25,136.84,136.8,2.0687786]
[1642631469158,11.2251,136.85,136.8,2.0687786]
[1642631470761,11.2251,136.85,136.79,8.0687786]
[1642631470959,11.2251,136.85,136.8,0.25]
[1642631470960,10.9651,136.85,136.8,0.25]
[1642631471161,10.9651,136.85,136.8,6.25]
[1642631471660,10.9651,136.85,136.8,6.0]
[1642631474167,24.832,136.86,136.8,6.0]
[1642631474570,25.092,136.86,136.8,6.0]
[1642631478402,34.107,136.87,136.8,8.0687786]
[1642631478603,34.107,136.87,136.81,0.25]
[1642631479104,34.107,136.87,136.81,2.3187786]
[1642631479304,34.107,136.87,136.81,0.25]
[1642631479503,23.1432,136.87,136.81,0.25]
[1642631479703,23.1432,136.87,136.81,2.3187786]
[1642631479903,23.1432,136.87,136.81,8.3187786]
[1642631482105,23.4032,136.87,136.81,8.3187786]
[1642631487312,23.31555118,136.87,136.81,8.3187786]
[1642631489213,23.31555118,136.87,136.81,8.5787786]
[1642631500130,0.26,136.87,136.81,8.5787786]
[1642631500329,22.8433,136.9,136.81,32.2016786]
[1642631500629,28.8433,136.9,136.82,2.0687786]
[1642631500831,28.8433,136.9,136.83,0.25]
[1642631501040,23.1033,136.9,136.83,9.172]
[1642631501232,0.26,136.9,136.83,9.172]
[1642631501431,10.9606,136.91,136.83,9.172]
[1642631501631,23.8768,136.92,136.83,11.5007786]
[1642631502254,23.8768,136.92,136.83,23.92120227]
[1642631502858,23.8768,136.92,136.84,2.0687786]
[1642631503059,23.8768,136.92,136.85,6.0]
[1642631503258,1.91337623,136.94,136.85,6.51]
[1642631503460,61.02467623,136.95,136.86,1.46687198]
[1642631503662,61.02467623,136.95,136.87,6.0]
[1642631503861,61.02467623,136.95,136.87,6.25]
[1642631504060,61.02467623,136.95,136.87,6.51]
[1642631504263,48.1539,136.95,136.87,6.51]
[1642631505665,48.1539,136.95,136.87,9.17]
[1642631506665,48.4139,136.95,136.87,9.17]
[1642631508668,48.4139,136.95,136.87,9.43]
[1642631508871,24.8806,136.95,136.87,8.92]
[1642631509070,35.8378,136.95,136.87,8.92]
[1642631510270,0.25,136.94,136.87,8.92]
[1642631510471,3.17,136.94,136.87,6.0]
[1642631510674,11.2078,136.94,136.87,6.0]
[1642631510871,11.2078,136.94,136.86,6.0]
[1642631511071,22.994,136.93,136.86,6.0]
[1642631511271,22.994,136.93,136.87,0.25]
[1642631512170,10.9566,136.96,136.87,0.25]
[1642631512371,23.5099,136.95,136.87,0.25]
[1642631512573,23.7599,136.95,136.87,0.25]
[1642631513173,23.5099,136.95,136.87,0.25]
[1642631514570,23.7699,136.95,136.87,0.25]
[1642631515375,23.7699,136.95,136.87,11.205]
[1642631515576,23.7699,136.95,136.88,6.0]
[1642631515777,23.7699,136.95,136.89,0.25]
[1642631531524,23.5099,136.95,136.89,0.25]
[1642631532425,25.42327623,136.95,136.89,0.25]
[1642631532629,23.5099,136.95,136.89,0.25]
[1642631535028,23.7699,136.95,136.89,0.25]
[1642631535428,23.5099,136.95,136.89,0.25]
[1642631537930,25.74957623,136.97,136.89,0.25]
[1642631538130,25.74957623,136.97,136.9,2.92]
[1642631538330,25.74957623,136.97,136.91,0.25]
[1642631538529,25.74957623,136.97,136.91,6.25]
[1642631538731,25.74957623,136.97,136.91,6.51]
[1642631538933,1.91337623,136.97,136.91,6.51]
[1642631539132,2.17337623,136.97,136.91,6.51]
[1642631539341,0.26,136.97,136.91,6.51]
[1642631539767,1.91337623,136.97,136.91,6.51]
[1642631539965,2.17337623,136.98,136.91,6.51]
[1642631540166,1.91337623,136.98,136.91,6.51]
[1642631540367,2.17337623,136.98,136.91,6.51]
[1642631540566,1.91337623,136.98,136.91,6.51]
[1642631541969,1.91337623,136.98,136.91,91.97740256]
[1642631542170,24.80347623,136.99,136.91,91.97740256]
[1642631542572,24.80347623,136.99,136.91,114.69960256]
[1642631543572,1.91337623,136.99,136.91,114.69960256]
[1642631544172,1.91337623,137.0,136.91,114.69960256]
[1642631544373,1.91337623,137.0,136.94,10.9494]
[1642631544574,1.91337623,137.0,136.95,6.0]
[1642631544775,1.91337623,137.0,136.95,6.51]
[1642631544979,24.85917623,137.02,136.95,6.51]
[1642631545174,24.85917623,137.02,136.95,79.55]
[1642631545578,22.9458,137.02,136.95,79.55]
[1642631545978,22.9458,137.02,136.95,90.4986]
[1642631546377,1.91337623,137.03,136.95,90.4986]
[1642631546577,1.91337623,137.03,136.95,93.4176]
[1642631546776,1.91337623,137.03,136.95,94.89350256]
[1642631546977,1.91337623,137.04,136.95,91.97450256]
[1642631548378,25.16467623,137.05,136.95,91.97450256]
[1642631548978,25.16467623,137.05,136.97,73.04]
[1642631549180,25.16467623,137.05,136.98,84.2361]
[1642631549580,23.2513,137.05,136.99,6.0]
[1642631549781,23.2513,137.05,137.0,0.25]
[1642631550684,23.5113,137.05,137.0,0.25]
[1642631553984,23.2513,137.05,137.0,0.25]
[1642631555787,23.2513,137.05,137.0,3.169]
[1642631556184,23.2513,137.05,137.01,6.0]
[1642631556683,23.2513,137.05,137.02,0.25]
[1642631556884,23.2513,137.05,137.03,6.06439994]
[1642631557089,37.80127623,137.1,137.03,6.06439994]
[1642631557284,12.85867623,137.1,137.04,0.25]
[1642631557983,24.8625,137.09,137.04,0.25]
[1642631558184,24.8625,137.09,137.02,0.25]
[1642631561287,25.1225,137.09,137.02,0.25]
[1642631562488,24.8625,137.09,137.02,0.25]
[1642631566128,24.8625,137.09,137.02,3.168]
[1642631568731,25.1225,137.09,137.02,3.168]
[1642631569827,25.1225,137.09,137.02,0.25]
[1642631570829,27.03587623,137.09,137.02,0.25]
[1642631575134,1.91337623,137.08,137.02,0.25]
[1642631575635,26.77587623,137.09,137.02,0.25]
[1642631576034,1.91337623,137.08,137.02,0.25]
[1642631576436,26.77587623,137.09,137.02,0.25]
[1642631576934,1.91337623,137.08,137.02,0.25]
[1642631577434,26.77587623,137.09,137.02,0.25]
[1642631577837,1.91337623,137.08,137.02,0.25]
[1642631578335,26.77587623,137.09,137.02,0.25]
[1642631578535,1.91337623,137.08,137.02,0.25]
[1642631578942,2.17337623,137.08,137.02,0.25]
[1642631580036,0.26,137.08,137.02,0.25]
[1642631580237,26.77587623,137.09,137.02,0.25]
[1642631580437,27.03587623,137.09,137.02,0.25]
[1642631581543,1.91337623,137.08,137.02,0.25]
[1642631582541,2.17337623,137.08,137.02,0.25]
[1642631583041,2.17337623,137.08,137.01,6.0]
[1642631583241,1.91337623,137.07,137.01,6.0]
[1642631585149,1.91337623,137.07,136.99,6.0]
[1642631586248,1.91337623,137.07,137.0,0.25]
[1642631586551,1.91337623,137.06,137.0,0.25]
[1642631588954,2.17337623,137.06,137.0,0.25]
[1642631592882,2.17337623,137.06,136.99,6.0]
[1642631593081,3.169,137.05,136.98,2.918]
[1642631593280,3.169,137.05,136.9,6.24121489]
[1642631593281,73.04,137.04,136.94,2.0687786]
[1642631593481,2.919,137.03,136.91,4.14015053]
[1642631593682,73.04,137.02,136.87,4.14015053]
[1642631593882,73.04,137.02,136.84,4.14015053]
[1642631593883,73.04,136.99,136.84,4.14015053]
[1642631594081,4.23166421,137.0,136.81,452.06448298]
[1642631594082,84.0004,136.97,136.81,452.06448298]
[1642631594283,0.25,136.96,136.79,4.14015053]
[1642631594484,73.04,136.95,136.78,4.14015053]
[1642631594682,0.25,136.94,136.8,6.0]
[1642631594884,73.04,136.93,136.77,10.14015053]
[1642631595086,84.0021,136.91,136.77,6.0]
[1642631595284,0.25,136.9,136.77,6.0]
[1642631595483,0.25,136.9,136.76,6.0]
[1642631596086,0.25,136.9,136.76,6.26]
[1642631596688,0.25,136.9,136.77,0.25]
[1642631597086,10.9624,136.88,136.77,0.25]
[1642631600591,73.04,136.87,136.77,0.25]
[1642631600793,84.0039,136.87,136.77,0.25]
[1642631604194,84.2639,136.87,136.77,0.25]
[1642631606699,84.2639,136.87,136.76,6.0]
[1642631606897,11.2147,136.86,136.76,6.0]
[1642631607099,84.2547,136.86,136.76,6.0]
[1642631607299,84.0047,136.86,136.76,6.0]
[1642631607698,0.25,136.85,136.76,6.0]
[1642631608298,0.25,136.85,136.77,0.25]
[1642631608500,0.25,136.85,136.76,6.0]
[1642631610003,0.25,136.85,136.77,0.25]
[1642631610503,11.2149,136.85,136.77,0.25]
[1642631612903,11.4749,136.85,136.77,0.25]
[1642631613507,84.2649,136.85,136.77,0.25]
[1642631613707,0.25,136.84,136.77,0.25]
[1642631613909,11.2157,136.84,136.77,0.25]
[1642631614107,10.9657,136.84,136.77,6.25]
[1642631614307,10.9657,136.84,136.78,0.25]
[1642631614508,10.9657,136.84,136.74,0.27890342]
[1642631614907,10.9657,136.84,136.74,0.02890342]
[1642631615108,0.25,136.83,136.74,0.02890342]
[1642631615509,10.9657,136.84,136.74,0.02890342]
[1642631616311,10.9657,136.84,136.73,16.49460342]
[1642631616511,86.9297,136.84,136.73,16.49460342]
[1642631616712,84.0057,136.84,136.73,16.49460342]
[1642631617114,84.0057,136.84,136.74,0.25]
[1642631617716,0.25,136.83,136.74,0.25]
[1642631618017,10.9665,136.83,136.74,0.25]
[1642631618856,11.2265,136.83,136.74,0.25]
[1642631621059,34.6033,136.83,136.74,0.25]
[1642631621961,107.6433,136.83,136.74,0.25]
[1642631623688,34.6033,136.83,136.74,0.25]
[1642631626191,34.6033,136.83,136.75,4.13107393]
[1642631626392,34.6033,136.83,136.74,4.39015053]
[1642631626591,34.6033,136.83,136.75,6.0]
[1642631626791,34.6033,136.83,136.76,0.25]
[1642631627991,34.6033,136.83,136.75,0.25]
[1642631630897,34.3433,136.83,136.75,0.25]
[1642631631298,34.3433,136.83,136.74,10.40015053]
[1642631631500,34.3433,136.83,136.74,6.26]
[1642631631800,34.3433,136.83,136.75,4.13299418]
[1642631631997,34.3433,136.83,136.76,6.0]
[1642631632900,34.3433,136.83,136.77,0.25]
[1642631633098,34.3433,136.83,136.75,6.25]
[1642631633299,33.6611,136.85,136.75,6.51]
[1642631633499,58.6456,136.85,136.75,6.51]
[1642631634501,58.9056,136.85,136.75,6.51]
[1642631635703,58.9056,136.85,136.75,9.433]
[1642631637305,58.9056,136.85,136.76,4.13657403]
[1642631637507,58.9056,136.85,136.77,6.0]
[1642631637705,58.9056,136.85,136.77,6.25]
[1642631638405,58.9056,136.85,136.77,0.25]
[1642631663769,58.9056,136.85,136.76,6.0]
[1642631665171,58.9056,136.85,136.77,0.25]
[1642631670305,0.25,136.84,136.77,0.25]
[1642631671906,58.9056,136.85,136.77,0.25]
[1642631675214,0.25,136.84,136.77,0.25]
[1642631675911,0.25,136.84,136.76,29.1984]
[1642631677211,0.25,136.84,136.77,0.25]
[1642631678212,58.9056,136.85,136.77,0.25]
[1642631682619,58.9056,136.85,136.76,29.1984]
[1642631684120,58.9056,136.85,136.77,0.25]
[1642631685223,0.25,136.84,136.77,0.25]
[1642631685521,58.9056,136.85,136.77,0.25]
[1642631685722,0.25,136.84,136.77,0.25]
[1642631690028,58.9056,136.85,136.77,0.25]
[1642631698868,58.9056,136.85,136.76,29.1984]
[1642631700168,58.9056,136.85,136.77,0.25]
[1642631701170,58.6456,136.85,136.77,0.25]
[1642631704804,58.9056,136.85,136.77,0.25]
[1642631711776,58.9056,136.85,136.76,29.4584]
[1642631712976,58.9056,136.85,136.77,0.25]
[1642631713580,58.9056,136.85,136.77,2.32110148]
[1642631713983,0.25,136.84,136.78,6.0]
[1642631714179,61.8286,136.85,136.79,0.25]
[1642631714379,58.9056,136.85,136.79,0.25]
[1642631714580,58.9056,136.85,136.77,6.0]
[1642631714879,58.9056,136.85,136.78,0.25]
[1642631717685,58.38168394,136.85,136.78,0.25]
[1642631722814,58.38168394,136.85,136.77,8.07110148]
[1642631723014,58.38168394,136.85,136.77,6.0]
[1642631723215,58.38168394,136.85,136.77,8.07110148]
[1642631723620,58.38168394,136.85,136.77,6.0]
[1642631724218,58.38168394,136.85,136.78,0.25]
[1642631735931,58.38168394,136.85,136.77,6.0]
[1642631736130,2.21265302,136.84,136.77,6.0]
[1642631736331,11.2688154,136.82,136.74,6.0]
[1642631736531,75.00265302,136.81,136.71,2.07110148]
[1642631736731,22.838,136.8,136.71,2.07110148]
[1642631736930,75.00265302,136.79,136.7,2.07110148]
[1642631737132,75.00265302,136.79,136.68,2.07110148]
[1642631737133,77.92665302,136.79,136.68,2.07110148]
[1642631737334,0.25,136.78,136.69,2.07110148]
[1642631737731,0.25,136.78,136.7,0.25]
[1642631737931,0.25,136.78,136.68,8.32110148]
[1642631738232,34.2805,136.78,136.68,8.32110148]
[1642631738732,34.2805,136.78,136.69,22.7928]
[1642631739134,34.2805,136.78,136.7,6.25]
[1642631739532,34.2805,136.78,136.7,0.25]
[1642631739732,34.2805,136.78,136.71,6.0]
[1642631739935,34.5405,136.78,136.7,0.25]
[1642631740133,34.5405,136.78,136.69,0.25]
[1642631742132,34.5405,136.78,136.67,24.2175]
[1642631742336,34.5405,136.78,136.67,24.4775]
[1642631742542,34.5405,136.78,136.68,6.0]
[1642631742736,34.5405,136.78,136.69,0.25]
[1642631742936,34.2905,136.78,136.69,0.25]
[1642631743139,11.2212,136.77,136.69,0.25]
[1642631743338,23.3747,136.76,136.69,0.25]
[1642631746241,34.3468,136.76,136.69,0.25]
[1642631746843,0.25,136.75,136.69,0.25]
[1642631748047,11.223,136.75,136.69,0.25]
[1642631749247,11.483,136.75,136.69,0.25]
[1642631750048,11.223,136.75,136.69,0.25]
[1642631751450,11.483,136.75,136.69,0.25]
[1642631755580,11.483,136.75,136.68,6.0]
[1642631756981,11.483,136.75,136.69,0.25]
[1642631758381,22.9193,136.74,136.66,6.25]
[1642631761586,22.9193,136.74,136.66,8.32110148]
[1642631761786,22.9193,136.74,136.66,2.32110148]
[1642631762085,22.9193,136.74,136.67,6.0]
[1642631762284,22.9193,136.74,136.68,0.25]
[1642631762285,23.1793,136.74,136.68,0.25]
[1642631764190,23.1793,136.74,136.68,6.25]
[1642631764789,23.1793,136.74,136.68,8.32110148]
[1642631764989,23.1793,136.74,136.69,6.0]
[1642631765289,23.1793,136.74,136.7,0.25]
[1642631767191,23.1793,136.74,136.69,6.0]
[1642631767192,23.1793,136.74,136.69,5.75]
[1642631767692,23.1793,136.74,136.67,2.07110148]
[1642631769294,23.1793,136.74,136.68,0.25]
[1642631769492,23.1793,136.74,136.68,6.25]
[1642631769695,23.1793,136.74,136.69,6.0]
[1642631770195,23.1793,136.74,136.7,0.25]
[1642631771296,23.1793,136.74,136.69,0.25]
[1642631772696,10.973,136.75,136.69,6.25]
[1642631774097,11.233,136.75,136.69,6.25]
[1642631779933,11.233,136.75,136.69,6.0]
[1642631781233,0.26,136.75,136.7,0.25]
[1642631781633,24.3283,136.76,136.69,6.0]
[1642631781834,24.5783,136.76,136.69,6.0]
[1642631783136,24.5783,136.76,136.7,0.25]
[1642631783333,24.5783,136.76,136.69,6.0]
[1642631783533,24.5783,136.76,136.7,0.25]
[1642631784735,35.5504,136.76,136.7,0.25]
[1642631785134,35.8104,136.76,136.7,0.25]
[1642631786635,35.8104,136.76,136.69,6.0]
[1642631787834,93.09554083,136.76,136.69,6.0]
[1642631788240,93.09554083,136.76,136.7,0.25]
[1642631788843,92.84554083,136.76,136.7,0.25]
[1642631789845,35.5604,136.76,136.7,0.25]
[1642631794144,92.84551848,136.76,136.7,0.25]
[1642631795246,35.5604,136.76,136.7,0.25]
[1642631795645,92.84603595,136.76,136.7,0.25]
[1642631798886,35.5604,136.76,136.7,0.25]
[1642631801187,35.0604,136.76,136.7,0.25]
[1642631805093,35.0604,136.76,136.69,6.0]
[1642631805993,0.25,136.75,136.69,6.0]
[1642631806394,0.25,136.75,136.7,0.25]
[1642631809497,0.25,136.75,136.69,6.0]
[1642631809897,0.25,136.75,136.68,6.0]
[1642631811100,0.25,136.75,136.69,0.25]
[1642631812400,12.93475302,136.76,136.69,0.25]
[1642631812804,10.9721,136.76,136.69,0.25]
[1642631813004,10.9721,136.76,136.69,6.25]
[1642631813206,1.96265302,136.77,136.69,6.51]
[1642631814206,2.22265302,136.77,136.69,6.51]
[1642631817339,1.96265302,136.77,136.69,79.55]